bitfinex/quotes_SOLUSD_20240725
["timestamp","ask_amount","ask_price","bid_price","bid_amount"]
[1721948774186,5.786,172.83,172.81,6.0918]
[1721948774403,5.7857,172.84,172.81,6.0918]
[1721948774569,5.7854,172.85,172.81,6.0918]
[1721948775170,5.7851,172.86,172.82,5.7863]
[1721948775384,5.7851,172.86,172.81,11.8784]
[1721948775700,5.7854,172.85,172.81,11.8784]
[1721948775998,5.7851,172.86,172.81,11.8784]
[1721948776461,5.7854,172.85,172.81,11.8784]
[1721948776861,5.7854,172.85,172.81,5.7866]
[1721948777075,14.4612,172.88,172.77,21.9352]
[1721948777282,16.30816328,172.92,172.78,1.1573988]
[1721948777482,5.7847,172.87,172.82,5.7862]
[1721948777679,5.7844,172.88,172.84,5.7856]
[1721948777891,5.784,172.89,172.84,5.7856]
[1721948778277,5.7844,172.88,172.83,5.7859]
[1721948778473,5.7848,172.87,172.78,1.1573988]
[1721948778776,14.4596,172.9,172.8,5.7869]
[1721948778989,5.7851,172.86,172.79,1.15713303]
[1721948779202,5.7847,172.87,172.82,5.7862]
[1721948779496,45.0,172.89,172.81,5.7866]
[1721948779705,45.0,172.89,172.8,5.7869]
[1721948779906,5.7854,172.85,172.8,5.7869]
[1721948780385,45.0,172.89,172.8,5.7869]
[1721948780386,5.7858,172.84,172.8,5.7869]
[1721948780597,5.7858,172.84,172.77,21.9352]
[1721948780787,5.7861,172.83,172.77,21.9352]
[1721948780971,5.786,172.83,172.79,5.7873]
[1721948781171,14.4634,172.85,172.73,28.77083041]
[1721948781390,28.97,172.83,172.73,21.7604]
[1721948781581,5.7875,172.79,172.74,5.7889]
[1721948781877,5.7871,172.8,172.75,5.7886]
[1721948784272,5.7874,172.79,172.75,5.7886]
[1721948785097,5.7874,172.79,172.74,5.7889]
[1721948785491,5.7874,172.79,172.75,5.7887]
[1721948785687,5.7871,172.8,172.76,5.7882]
[1721948786079,5.7871,172.8,172.75,5.7886]
[1721948787186,5.7874,172.79,172.75,5.7886]
[1721948787628,5.787,172.81,172.73,21.7604]
[1721948787898,5.787,172.81,172.76,5.7882]
[1721948789289,5.787,172.81,172.77,5.7879]
[1721948789496,5.787,172.81,172.76,5.7883]
[1721948789710,43.4326,172.86,172.77,20.0]
[1721948789999,5.7857,172.84,172.79,5.787]
[1721948790206,5.7857,172.84,172.8,5.787]
[1721948791077,5.7854,172.85,172.8,5.787]
[1721948791402,28.97,172.89,172.75,1.15734185]
[1721948791605,5.7852,172.86,172.81,5.7866]
[1721948791779,5.7853,172.85,172.81,5.7866]
[1721948792300,5.7853,172.85,172.8,5.7869]
[1721948792788,5.7857,172.84,172.8,5.7869]
[1721948793417,5.7857,172.84,172.75,1.15734185]
[1721948793601,5.7857,172.84,172.75,21.15734185]
[1721948793986,14.4622,172.87,172.73,21.7604]
[1721948794308,5.7873,172.8,172.73,21.7604]
[1721948794481,5.7873,172.8,172.76,5.7883]
[1721948795391,14.4655,172.83,172.75,5.7886]
[1721948795611,14.4655,172.83,172.73,21.7604]
[1721948795612,45.0,172.82,172.73,21.7604]
[1721948796389,5.7881,172.77,172.73,5.7893]
[1721948796704,5.7884,172.76,172.69,16.0334]
[1721948797034,5.7881,172.77,172.72,5.7895]
[1721948797398,5.7881,172.77,172.73,5.7893]
[1721948800145,5.7881,172.77,172.72,5.7896]
[1721948800500,5.7881,172.77,172.73,5.7893]
[1721948800797,5.7881,172.77,172.72,5.7896]
[1721948801805,5.7881,172.77,172.73,5.7893]
[1721948802409,28.97,172.8,172.75,5.7884]
[1721948802611,45.0,172.79,172.75,5.7884]
[1721948802894,50.7876,172.79,172.74,5.789]
[1721948803196,5.7874,172.79,172.7,1.15788613]
[1721948803394,5.7874,172.79,172.69,16.0334]
[1721948804035,5.7881,172.77,172.73,5.7893]
[1721948804324,45.0,172.78,172.69,16.0334]
[1721948804517,45.0,172.79,172.69,16.0334]
[1721948804689,5.7884,172.76,172.71,5.7898]
[1721948804890,45.0,172.79,172.71,5.7898]
[1721948805116,5.7888,172.75,172.71,5.7898]
[1721948805313,5.7888,172.75,172.7,5.7903]
[1721948806221,5.7888,172.75,172.71,5.7899]
[1721948807531,5.7884,172.76,172.71,5.7899]
[1721948807734,45.0,172.79,172.69,16.0334]
[1721948807913,45.0,172.79,172.73,5.7893]
[1721948808234,50.7876,172.79,172.74,5.7887]
[1721948808533,5.7879,172.78,172.73,5.7893]
[1721948808834,5.788,172.77,172.73,5.7893]
[1721948809535,5.7877,172.78,172.73,5.7893]
[1721948809713,5.7877,172.78,172.74,5.7889]
[1721948810232,5.7877,172.78,172.73,5.7892]
[1721948810822,5.7877,172.78,172.74,5.7889]
[1721948811217,5.7877,172.78,172.73,5.7892]
[1721948811423,5.7881,172.77,172.73,5.7892]
[1721948814542,5.7881,172.77,172.72,5.7896]
[1721948815211,5.7884,172.76,172.72,5.7896]
[1721948817250,5.7887,172.75,172.71,5.79]
[1721948818337,20.2887,172.75,172.71,5.79]
[1721948819140,20.2884,172.76,172.71,5.79]
[1721948819310,20.2884,172.76,172.71,6.94783191]
[1721948819512,20.2884,172.76,172.72,5.7895]
[1721948819714,20.2884,172.76,172.71,1.15783191]
[1721948819715,5.7879,172.78,172.73,5.7892]
[1721948819928,14.5,172.76,172.73,5.7892]
[1721948820249,17.98268786,172.83,172.71,15.65783191]
[1721948820418,17.98268786,172.83,172.71,6.94773191]
[1721948820419,14.5,172.75,172.71,6.94773191]
[1721948820621,14.5,172.75,172.71,5.7899]
[1721948820821,14.5,172.75,172.71,6.94773295]
[1721948821024,14.5,172.75,172.68,7.3726915]
[1721948821025,5.79,172.71,172.68,0.8114915]
[1721948821223,48.9346,172.81,172.68,0.8114915]
[1721948821224,5.7907,172.69,172.68,0.8114915]
[1721948821437,20.2907,172.69,172.68,0.8114915]
[1721948822648,14.5,172.69,172.68,0.8114915]
[1721948823737,20.2907,172.69,172.68,0.8114915]
[1721948824442,5.7907,172.69,172.68,0.8114915]
[1721948825644,5.79,172.71,172.68,0.8114915]
[1721948825834,5.7905,172.7,172.68,0.8114915]
[1721948827645,5.7907,172.69,172.68,0.8114915]
[1721948828446,5.7904,172.7,172.68,0.8114915]
[1721948829343,5.7907,172.69,172.68,0.8114915]
[1721948830330,5.7907,172.69,172.6,15.0745]
[1721948830331,5.7919,172.66,172.61,5.7933]
[1721948830747,5.7919,172.66,172.62,5.793]
[1721948831048,45.0,172.69,172.6,15.0745]
[1721948831236,45.0,172.7,172.6,15.0745]
[1721948831632,29.03,172.73,172.6,15.0745]
[1721948831829,29.03,172.73,172.61,1.15839501]
[1721948832024,45.0,172.72,172.61,1.15839501]
[1721948832332,29.03,172.73,172.66,5.7914]
[1721948832537,5.7901,172.71,172.66,5.7914]
[1721948833147,5.7904,172.7,172.66,5.7914]
[1721948833532,5.7904,172.7,172.65,5.792]
[1721948834458,5.7883,172.77,172.67,15.2403]
[1721948834756,44.4569,172.8,172.7,6.2367]
[1721948834929,14.4697,172.78,172.68,1.15786665]
[1721948835125,5.7926,172.64,172.61,15.7329]
[1721948835344,14.4774,172.69,172.61,15.7329]
[1721948835540,14.4774,172.69,172.6,6.511]
[1721948835743,5.7927,172.64,172.6,6.511]
[1721948836024,14.4774,172.69,172.61,5.7931]
[1721948836025,5.7917,172.66,172.61,5.7931]
[1721948836251,45.0,172.68,172.62,5.7929]
[1721948836252,5.7913,172.68,172.62,5.7929]
[1721948836437,5.7915,172.67,172.62,5.7929]
[1721948837550,29.03,172.7,172.6,12.3045]
[1721948837761,29.03,172.7,172.6,6.511]
[1721948837762,5.7925,172.64,172.6,6.511]
[1721948837927,45.0,172.69,172.59,5.7938]
[1721948837928,5.7927,172.63,172.59,5.7938]
[1721948838125,5.793,172.62,172.57,15.7329]
[1721948838323,29.03,172.67,172.57,15.7329]
[1721948838533,5.7926,172.64,172.59,5.794]
[1721948838754,5.7928,172.63,172.58,5.7943]
[1721948838932,5.793,172.62,172.57,21.5276]
[1721948839138,5.793,172.62,172.58,5.7944]
[1721948839343,5.7928,172.63,172.58,5.7944]
[1721948839524,5.7924,172.64,172.59,5.794]
[1721948839727,5.7927,172.63,172.59,5.794]
[1721948839946,43.5104,172.65,172.56,6.4401]
[1721948840171,45.0,172.64,172.56,6.4401]
[1721948840344,29.03,172.67,172.56,6.4401]
[1721948840546,5.7935,172.61,172.56,12.2349]
[1721948840930,5.7938,172.6,172.56,6.4401]
[1721948841440,17.41,172.69,172.56,6.4401]
[1721948841751,14.479,172.67,172.56,6.4401]
[1721948842053,5.7931,172.62,172.56,6.4401]
[1721948842260,5.7934,172.61,172.57,5.7944]
[1721948842560,74.03,172.68,172.6,5.7935]
[1721948842863,5.7923,172.65,172.6,5.7935]
[1721948843234,5.7924,172.64,172.6,5.7935]
[1721948843452,5.7921,172.65,172.6,5.7935]
[1721948844864,5.7921,172.65,172.61,5.7933]
[1721948845369,5.7924,172.64,172.6,5.7937]
[1721948845659,5.7914,172.67,172.62,5.7927]
[1721948845842,5.7911,172.68,172.63,5.7926]
[1721948847864,5.7914,172.67,172.63,5.7926]
[1721948848364,29.03,172.72,172.64,1.15844363]
[1721948848568,5.7905,172.7,172.65,11.9971]
[1721948848738,5.7903,172.7,172.65,11.997]
[1721948849054,5.7911,172.68,172.65,6.2052]
[1721948849666,43.5048,172.72,172.65,6.2052]
[1721948849858,5.7914,172.67,172.65,6.2052]
[1721948850184,5.7917,172.66,172.61,22.5282]
[1721948850668,5.7917,172.66,172.61,28.3213]
[1721948851041,5.7914,172.67,172.62,5.793]
[1721948851237,5.7914,172.67,172.63,5.7926]
[1721948851454,5.791,172.69,172.64,5.7922]
[1721948853050,14.472,172.75,172.61,23.68659695]
[1721948853251,5.7894,172.73,172.68,5.7908]
[1721948853450,5.7894,172.73,172.62,45.0]
[1721948853770,5.7891,172.74,172.69,5.7906]
[1721948853941,5.7891,172.74,172.7,5.7903]
[1721948854137,5.7891,172.74,172.65,1.15808981]
[1721948854366,5.7891,172.74,172.69,5.7906]
[1721948854744,5.7894,172.73,172.69,5.7906]
[1721948855192,14.4694,172.78,172.7,5.7903]
[1721948855370,5.7887,172.75,172.71,5.79]
[1721948855869,5.7884,172.76,172.71,5.79]
[1721948856254,29.03,172.8,172.73,5.7892]
[1721948857482,29.03,172.83,172.72,16.479]
[1721948857648,5.7871,172.8,172.75,5.7884]
[1721948858452,5.7874,172.79,172.74,5.7889]
[1721948858647,5.7878,172.78,172.73,5.7893]
[1721948858852,29.03,172.83,172.74,1.15769433]
[1721948859051,5.7871,172.8,172.75,5.7884]
[1721948859275,5.7871,172.8,172.76,5.7882]
[1721948859571,5.7871,172.8,172.75,5.7886]
[1721948860555,5.7874,172.79,172.74,5.789]
[1721948861078,46.44,172.75,172.61,6.0107]
[1721948861277,5.7927,172.63,172.61,6.0107]
[1721948861577,5.7921,172.65,172.61,6.0107]
[1721948862974,5.7925,172.64,172.61,6.0107]
[1721948863272,5.792,172.65,172.61,6.0107]
[1721948864571,5.7924,172.64,172.61,6.0107]
[1721948866189,5.7918,172.66,172.61,11.8038]
[1721948866354,5.7918,172.66,172.61,6.0107]
[1721948866664,5.7921,172.65,172.61,6.0107]
[1721948867254,5.7924,172.64,172.61,6.0107]
[1721948867565,5.7925,172.64,172.61,6.0107]
[1721948867881,5.7935,172.61,172.57,6.5035]
[1721948868178,5.7934,172.61,172.57,6.5035]
[1721948868389,5.7934,172.61,172.57,12.2981]
[1721948868551,5.7934,172.61,172.57,5.7946]
[1721948869861,5.793,172.63,172.57,5.7946]
[1721948870194,5.7931,172.62,172.57,5.7946]
[1721948872485,5.7931,172.62,172.58,5.7942]
[1721948873456,5.7927,172.63,172.59,5.7939]
[1721948873962,5.7924,172.64,172.59,5.7939]
[1721948874662,5.7924,172.64,172.6,5.7935]
[1721948875273,5.7924,172.64,172.59,5.7939]
[1721948876575,5.7928,172.63,172.59,5.7939]
[1721948878379,5.7924,172.64,172.59,5.7939]
[1721948878581,5.7924,172.64,172.6,5.7936]
[1721948878784,5.7921,172.65,172.6,6.95218909]
[1721948878970,5.7921,172.65,172.61,5.7933]
[1721948881781,5.7917,172.66,172.62,5.793]
[1721948882982,5.7917,172.66,172.61,5.7933]
[1721948883184,14.4774,172.69,172.6,5.7937]
[1721948883896,5.7921,172.65,172.61,5.7933]
[1721948885204,5.7918,172.66,172.62,5.7929]
[1721948885378,5.7914,172.67,172.62,5.7929]
[1721948888402,5.7917,172.66,172.62,5.7929]
[1721948892390,5.7921,172.65,172.61,5.7933]
[1721948892597,14.4763,172.7,172.59,21.4112]
[1721948892895,45.0,172.69,172.59,21.4112]
[1721948893600,14.4782,172.68,172.59,21.4112]
[1721948893820,45.0,172.67,172.59,21.4112]
[1721948894101,5.7931,172.62,172.59,21.4112]
[1721948894279,5.7934,172.61,172.59,21.4112]
[1721948894477,5.7934,172.61,172.59,15.205]
[1721948894676,5.7931,172.62,172.59,15.205]
[1721948896499,5.7927,172.63,172.59,20.999]
[1721948898696,5.793,172.62,172.59,15.205]
[1721948901435,5.7928,172.63,172.59,15.205]
[1721948901710,5.793,172.62,172.59,15.205]
[1721948902405,20.323,172.62,172.59,15.205]
[1721948903194,5.7934,172.61,172.59,15.205]
[1721948903391,20.3231,172.62,172.59,15.205]
[1721948903594,5.7927,172.63,172.59,15.205]
[1721948903797,14.53,172.61,172.59,15.205]
[1721948904411,20.3234,172.61,172.59,15.205]
[1721948904782,14.53,172.6,172.59,15.205]
[1721948905413,14.53,172.6,172.55,27.9356]
[1721948905706,14.4814,172.64,172.55,27.9356]
[1721948905707,14.53,172.59,172.55,27.9356]
[1721948906708,14.53,172.6,172.56,1.15888828]
[1721948907012,14.53,172.61,172.56,15.68888828]
[1721948907909,14.53,172.61,172.55,36.6705]
[1721948908294,14.4805,172.65,172.55,36.6705]
[1721948908295,14.53,172.6,172.55,36.6705]
[1721948908488,20.324,172.59,172.55,22.1405]
[1721948908808,20.324,172.59,172.55,27.9358]
[1721948909719,14.53,172.61,172.57,5.7947]
[1721948910594,20.3234,172.61,172.57,5.7947]
[1721948911411,20.3234,172.61,172.56,5.795]
[1721948911412,14.53,172.6,172.56,5.795]
[1721948912188,20.3237,172.6,172.56,5.795]
[1721948914218,14.4805,172.65,172.58,5.7943]
[1721948914403,20.3227,172.63,172.58,21.48298865]
[1721948914714,5.7924,172.64,172.58,15.68868865]
[1721948914920,14.53,172.63,172.58,15.68868865]
[1721948915260,20.3227,172.63,172.58,14.53]
[1721948916920,6.04598401,172.7,172.56,14.53]
[1721948916921,14.53,172.61,172.56,14.53]
[1721948917097,14.53,172.6,172.55,36.6705]
[1721948917699,20.3238,172.6,172.56,5.7949]
[1721948917903,5.7938,172.6,172.56,20.3249]
[1721948918109,20.3234,172.61,172.56,20.3249]
[1721948918596,14.53,172.61,172.57,5.7946]
[1721948919940,20.3234,172.61,172.55,42.4655]
[1721948920260,14.53,172.58,172.55,22.1405]
[1721948920653,5.7936,172.61,172.56,5.795]
[1721948920831,5.7936,172.61,172.57,5.7947]
[1721948920832,14.53,172.6,172.57,5.7947]
[1721948921032,14.53,172.6,172.56,5.7949]
[1721948924257,20.3237,172.6,172.56,5.7949]
[1721948924643,14.53,172.57,172.53,5.796]
[1721948924855,14.53,172.55,172.52,5.7963]
[1721948925948,14.53,172.55,172.51,0.8114915]
[1721948926245,14.53,172.54,172.51,0.8114915]
[1721948927959,20.326,172.54,172.51,0.8114915]
[1721948928139,14.53,172.53,172.51,0.8114915]
[1721948928345,20.3261,172.53,172.51,0.8114915]
[1721948928962,14.53,172.54,172.51,0.8114915]
[1721948929164,20.326,172.54,172.51,0.8114915]
[1721948929337,14.53,172.54,172.51,0.8114915]
[1721948929667,20.3261,172.53,172.51,0.8114915]
[1721948930836,14.53,172.53,172.51,0.8114915]
[1721948931551,14.53,172.54,172.51,0.8114915]
[1721948931948,20.3261,172.53,172.51,0.8114915]
[1721948932353,14.53,172.52,172.51,0.8114915]
[1721948932544,20.3261,172.53,172.51,0.8114915]
[1721948936535,14.4858,172.59,172.51,0.8114915]
[1721948936739,14.53,172.55,172.52,5.7961]
[1721948936959,14.53,172.54,172.51,6.6081915]
[1721948937664,14.53,172.53,172.51,0.8114915]
[1721948938771,7.89188519,172.62,172.53,22.1822]
[1721948938974,5.7936,172.61,172.56,5.7949]
[1721948939260,14.53,172.59,172.57,6.95350491]
[1721948939576,14.53,172.59,172.54,14.53]
[1721948939577,5.7935,172.61,172.56,5.795]
[1721948939745,14.53,172.59,172.57,1.15881578]
[1721948940345,14.53,172.59,172.55,5.7953]
[1721948941253,14.53,172.58,172.55,5.7953]
[1721948941981,14.53,172.56,172.53,27.978]
[1721948942345,14.53,172.55,172.54,5.7957]
[1721948942680,14.53,172.57,172.54,5.7957]
[1721948942960,1.8412665,172.66,172.53,36.7122]
[1721948943177,14.53,172.58,172.56,5.795]
[1721948943850,14.53,172.57,172.55,5.7953]
[1721948945288,14.53,172.58,172.55,5.7953]
[1721948945472,14.53,172.58,172.56,5.795]
[1721948945783,14.53,172.59,172.56,5.795]
[1721948949754,14.53,172.59,172.55,5.7953]
[1721948950164,14.53,172.59,172.56,6.95359287]
[1721948950345,14.53,172.59,172.57,5.7946]
[1721948950975,14.53,172.59,172.56,6.95369287]
[1721948951172,14.4808,172.65,172.56,1.15879287]
[1721948951374,14.53,172.59,172.54,14.53]
[1721948951551,14.53,172.59,172.56,5.7948]
[1721948952283,14.53,172.58,172.53,36.7122]
[1721948953180,14.4808,172.65,172.53,36.7122]
[1721948953478,14.53,172.6,172.56,5.7947]
[1721948953652,14.53,172.59,172.57,5.7945]
[1721948954274,14.53,172.6,172.57,5.7945]
[1721948954476,5.7923,172.65,172.56,14.53]
[1721948954659,5.7924,172.64,172.59,5.7939]
[1721948954867,14.53,172.62,172.59,5.7939]
[1721948955069,14.53,172.61,172.59,5.7939]
[1721948955255,14.53,172.61,172.6,6.95234957]
[1721948955564,14.53,172.61,172.6,1.15864957]
[1721948955749,14.53,172.61,172.59,5.794]
[1721948956271,14.53,172.62,172.6,5.7937]
[1721948956567,14.53,172.62,172.57,15.68861944]
[1721948956974,14.53,172.62,172.57,14.53]
[1721948958474,14.53,172.62,172.59,5.7937]
[1721948958673,14.53,172.62,172.6,5.7937]
[1721948958974,5.7921,172.65,172.6,5.7937]
[1721948959155,14.53,172.63,172.6,5.7937]
[1721948962380,14.53,172.62,172.6,5.7937]
[1721948962764,14.53,172.62,172.59,5.794]
[1721948963180,14.53,172.61,172.57,5.7946]
[1721948964081,20.3234,172.61,172.57,5.7946]
[1721948964285,14.53,172.6,172.57,5.7946]
[1721948964989,14.53,172.6,172.56,6.3778799]
[1721948965495,14.53,172.6,172.57,5.7947]
[1721948966097,14.53,172.6,172.58,5.7944]
[1721948967478,5.793,172.62,172.58,5.7944]
[1721948967686,14.53,172.6,172.58,5.7944]
[1721948968194,14.53,172.6,172.59,5.794]
[1721948968389,14.53,172.61,172.6,5.7937]
[1721948968692,14.53,172.62,172.6,5.7937]
[1721948969275,5.7921,172.65,172.6,5.7937]
[1721948969477,14.53,172.62,172.6,5.7937]
[1721948970168,14.53,172.63,172.6,5.7937]
[1721948972565,14.53,172.64,172.6,5.7937]
[1721948973574,14.53,172.63,172.6,5.7937]
[1721948974599,14.53,172.63,172.61,5.7933]
[1721948974890,14.53,172.63,172.6,5.7936]
[1721948977367,15.3259,172.68,172.65,5.792]
[1721948977565,14.53,172.67,172.62,14.53]
[1721948977793,14.53,172.67,172.63,1.15833126]
[1721948978175,14.53,172.68,172.64,5.7921]
[1721948978385,14.53,172.67,172.65,1.15827824]
[1721948979068,14.53,172.67,172.65,6.95027824]
[1721948979271,14.53,172.69,172.65,6.95027824]
[1721948980194,5.7901,172.71,172.65,15.68827824]
[1721948980500,20.3201,172.71,172.66,14.53]
[1721948980676,20.3201,172.71,172.67,6.94937038]
[1721948981002,5.7896,172.73,172.68,1.15807447]
[1721948981172,14.53,172.72,172.68,6.94887447]
[1721948982079,5.7896,172.73,172.68,6.94887447]
[1721948982294,14.53,172.72,172.68,6.94887447]
[1721948982480,14.53,172.69,172.67,15.3334]
[1721948983298,14.53,172.7,172.67,21.1247]
[1721948984996,14.53,172.7,172.67,5.7913]
[1721948987599,14.53,172.68,172.66,5.7916]
[1721948987901,14.53,172.67,172.66,5.7916]
[1721948988689,14.53,172.67,172.65,5.792]
[1721948990330,14.53,172.67,172.66,5.7917]
[1721948992403,14.53,172.67,172.65,5.792]
[1721948992910,14.53,172.66,172.64,5.7923]
[1721948993208,14.53,172.65,172.64,5.7923]
[1721948993811,14.53,172.66,172.64,5.7923]
[1721948994414,14.53,172.66,172.65,5.792]
[1721948996521,5.7887,172.75,172.7,5.7901]
[1721948996727,20.57844508,172.78,172.72,14.53]
[1721948997020,14.53,172.78,172.75,5.7887]
[1721948997193,14.53,172.78,172.76,5.7882]
[1721948997394,14.53,172.78,172.68,1.15769526]
[1721948997619,14.53,172.77,172.74,5.789]
[1721948998019,14.53,172.78,172.74,5.789]
[1721948998320,14.53,172.78,172.75,5.7885]
[1721948998710,14.53,172.78,172.76,5.7882]
[1721948999607,14.53,172.81,172.79,5.7871]
[1721949000918,5.7854,172.85,172.8,5.787]
[1721949001228,14.53,172.82,172.8,5.787]
[1721949001824,14.53,172.81,172.78,5.7876]
[1721949002123,14.53,172.8,172.78,5.7876]
[1721949002295,14.53,172.79,172.78,5.7876]
[1721949002499,2.08216454,172.87,172.8,5.7869]
[1721949002695,394.9612,172.88,172.8,5.787]
[1721949002696,14.53,172.82,172.8,5.787]
[1721949002910,14.53,172.83,172.78,15.68738552]
[1721949003203,14.53,172.84,172.82,5.786]
[1721949003416,14.53,172.83,172.79,5.7871]
[1721949003703,14.53,172.81,172.79,5.7871]
[1721949004531,14.53,172.8,172.74,15.8887]
[1721949004827,5.7857,172.84,172.79,5.7871]
[1721949004995,14.53,172.8,172.79,5.7871]
[1721949005195,14.53,172.81,172.79,5.7871]
[1721949005501,14.53,172.81,172.8,5.787]
[1721949006211,14.53,172.82,172.8,5.787]
[1721949008110,14.53,172.83,172.81,5.7867]
[1721949009436,14.53,172.83,172.78,14.53]
[1721949010127,14.53,172.82,172.81,5.7865]
[1721949010428,14.53,172.82,172.8,5.7869]
[1721949011216,14.53,172.81,172.8,5.7869]
[1721949011416,14.53,172.82,172.8,5.7869]
[1721949011616,14.53,172.81,172.8,5.7869]
[1721949012701,14.53,172.81,172.75,1.15736047]
[1721949012928,397.91,172.88,172.75,1.15736047]
[1721949012929,14.53,172.76,172.75,5.7884]
[1721949013120,14.53,172.76,172.74,21.6776]
[1721949013327,14.53,172.75,172.74,5.7889]
[1721949014010,14.53,172.75,172.73,5.7893]
[1721949014210,14.53,172.74,172.73,5.7893]
[1721949014914,58.12,172.8,172.76,5.788]
[1721949015231,14.53,172.77,172.76,5.788]
[1721949017031,14.53,172.77,172.75,5.7886]
[1721949018641,14.53,172.77,172.7,30.3746]
[1721949018642,6.6043,172.85,172.73,14.53]
[1721949018948,14.53,172.79,172.78,5.7876]
[1721949020210,14.53,172.79,172.77,5.7879]
[1721949021142,14.53,172.78,172.75,5.7886]
[1721949021352,14.53,172.76,172.75,5.7886]
[1721949022138,14.53,172.77,172.75,5.7886]
[1721949022443,14.53,172.77,172.76,5.7883]
[1721949023743,5.7862,172.83,172.73,14.53]
[1721949023915,14.53,172.79,172.78,5.7876]
[1721949025148,14.53,172.8,172.79,5.7873]
[1721949026347,14.53,172.8,172.78,5.7875]
[1721949026917,14.53,172.8,172.77,5.7879]
[1721949027231,14.53,172.79,172.77,5.7879]
[1721949028046,14.53,172.79,172.78,5.7877]
[1721949028215,14.53,172.81,172.79,5.7872]
[1721949029426,14.53,172.82,172.81,5.7866]
[1721949029613,5.7854,172.85,172.81,5.7866]
[1721949029813,14.53,172.84,172.82,5.7862]
[1721949030430,14.53,172.85,172.83,5.786]
[1721949031345,14.53,172.85,172.77,15.095]
[1721949031346,14.53,172.84,172.77,15.095]
[1721949031546,14.53,172.84,172.81,5.7864]
[1721949031842,14.53,172.84,172.82,5.7862]
[1721949032228,14.53,172.83,172.82,5.7862]
[1721949034838,386.2844,172.88,172.83,5.7857]
[1721949035050,14.53,172.84,172.83,5.786]
[1721949038550,14.53,172.84,172.5,25.82077741]
[1721949038551,5.787,172.8,172.72,15.9828]
[1721949038759,63.907,172.8,172.75,5.7884]
[1721949039949,5.7867,172.81,172.72,15.9828]
[1721949040155,14.53,172.77,172.76,5.7881]
[1721949040452,4.83074659,172.81,172.76,5.7881]
[1721949041348,14.53,172.77,172.76,5.7881]
[1721949041856,14.53,172.77,172.75,5.7886]
[1721949042160,14.53,172.76,172.75,5.7886]
[1721949045452,380.5,172.89,172.75,14.53]
[1721949045640,14.53,172.82,172.8,5.7869]
[1721949045842,14.53,172.81,172.79,5.7873]
[1721949046046,14.53,172.8,172.74,14.53]
[1721949046354,14.53,172.8,172.79,5.7873]
[1721949047474,5.7854,172.85,172.75,20.0]
[1721949047764,14.53,172.8,172.79,5.7873]
[1721949050256,5.7851,172.86,172.81,5.7864]
[1721949050462,14.53,172.82,172.81,5.7864]
[1721949054553,14.53,172.82,172.79,5.787]
[1721949054755,14.53,172.8,172.78,5.7876]
[1721949054961,14.53,172.79,172.78,5.7876]
[1721949059377,16.4674,172.88,172.76,14.53]
[1721949059579,14.53,172.81,172.8,5.787]
[1721949063085,16.4674,172.88,172.76,14.53]